bitfinex/quotes_BTCUSD_20260127
["timestamp","ask_amount","ask_price","bid_price","bid_amount"]
[1769521627585,0.02423087,88093.0,88072.0,0.52515538]
[1769521627925,0.05676593,88081.0,88072.0,0.52515538]
[1769521628148,0.05676593,88081.0,88072.0,0.53650972]
[1769521628389,0.05676593,88081.0,88072.0,0.52515538]
[1769521628931,0.05676593,88081.0,88072.0,0.53650972]
[1769521629302,0.05676593,88081.0,88072.0,0.52515538]
[1769521629502,0.05676593,88081.0,88072.0,0.53650972]
[1769521630111,0.05676593,88081.0,88073.0,0.53650959]
[1769521630304,0.05676593,88081.0,88073.0,0.52515538]
[1769521632170,0.05644367,88081.0,88073.0,0.52515538]
[1769521632380,0.05644367,88081.0,88073.0,0.53650959]
[1769521632705,0.05644367,88081.0,88073.0,0.52515538]
[1769521633661,0.05644367,88081.0,88070.0,0.28254864]
[1769521634264,0.05644367,88081.0,88070.0,0.27119404]
[1769521634651,0.05644367,88081.0,88070.0,0.28254864]
[1769521635920,0.05644367,88081.0,88071.0,0.01135447]
[1769521636094,0.05644367,88081.0,88070.0,0.33932156]
[1769521636509,0.05644367,88081.0,88071.0,0.01135447]
[1769521636854,0.38851893,88086.0,88070.0,0.33932156]
[1769521637083,0.05676593,88081.0,88071.0,0.01135447]
[1769521638217,0.05676593,88081.0,88070.0,0.27119404]
[1769521638448,0.0809968,88081.0,88068.0,0.52515538]
[1769521638890,0.05676593,88081.0,88061.0,0.01135576]
[1769521639112,0.02423087,88078.0,88064.0,0.01135537]
[1769521639575,0.02423087,88078.0,88065.0,0.01135524]
[1769521639842,0.02423087,88078.0,88067.0,0.05677455]
[1769521640045,0.02423087,88078.0,88068.0,0.021135]
[1769521641555,0.02423087,88078.0,88063.0,0.5932881]
[1769521641760,0.02406974,88078.0,88065.0,0.01135524]
[1769521642395,0.02406974,88078.0,88064.0,0.01135537]
[1769521642601,0.02406974,88078.0,88065.0,0.01135524]
[1769521642994,0.02406974,88078.0,88064.0,0.06813223]
[1769521643205,0.02344265,88075.0,88060.0,0.0001452]
[1769521643341,0.05676593,88072.0,88060.0,0.0001452]
[1769521643698,0.40453053,88074.0,88060.0,0.00136743]
[1769521643875,0.05677773,88072.0,88060.0,0.01272332]
[1769521644285,0.05677773,88072.0,88061.0,0.01135576]
[1769521644604,0.05677773,88072.0,88062.0,0.00124342]
[1769521644948,0.05677773,88072.0,88061.0,0.00125191]
[1769521646247,0.05677773,88072.0,88061.0,0.01260767]
[1769521647454,0.05677773,88072.0,88062.0,0.06813376]
[1769521647654,0.05677773,88072.0,88063.0,0.00126461]
[1769521648077,0.05677773,88072.0,88062.0,0.01262873]
[1769521648254,0.05677773,88072.0,88062.0,0.0012731]
[1769521648999,0.00567777,88071.0,88062.0,0.0012731]
[1769521649214,0.00567777,88071.0,88063.0,0.00129432]
[1769521649341,0.00567777,88071.0,88062.0,0.00129856]
[1769521651421,0.05677773,88072.0,88061.0,0.02341678]
[1769521653719,0.05677773,88072.0,88062.0,0.00137452]
[1769521654637,0.05677773,88072.0,88060.0,0.27133924]
[1769521654885,0.59912664,88072.0,88060.0,0.0001452]
[1769521657800,0.59912664,88072.0,88051.0,0.0001452]
[1769521657801,0.02114375,88067.0,88051.0,0.0001452]
[1769521658013,0.54234891,88066.0,88051.0,0.0001452]
[1769521659128,0.54234891,88066.0,88051.0,0.0003645]
[1769521660363,0.54218775,88066.0,88051.0,0.0003645]
[1769521662554,0.54218775,88066.0,85757.0,0.0463891]
[1769521662555,0.54234891,88057.0,88042.0,0.0001515]
[1769521662749,0.05677773,88059.0,88042.0,0.0001515]
[1769521662750,0.54234891,88055.0,88042.0,0.0001515]
[1769521663163,0.01214705,88054.0,88042.0,0.0001515]
[1769521663363,0.54234891,88047.0,88037.0,0.02728]
[1769521664495,0.05677773,88048.0,88037.0,0.03863886]
[1769521664712,0.05677773,88048.0,88038.0,0.01135873]
[1769521664925,0.05677773,88048.0,88039.0,0.0113586]
[1769521665165,0.05677773,88048.0,88037.0,0.05069678]
[1769521666427,0.05677773,88048.0,88038.0,0.01135873]
[1769521666824,0.05677773,88048.0,88037.0,0.05069678]
[1769521668070,0.05677773,88048.0,88037.0,0.02728]
[1769521668272,0.54234891,88047.0,88037.0,0.02728]
[1769521669937,0.05677773,88048.0,88038.0,0.01135873]
[1769521670139,0.05677773,88048.0,88039.0,0.50933248]
[1769521670589,0.54234891,88062.0,88046.0,0.08020503]
[1769521670821,0.54234891,88062.0,88050.0,0.21439161]
[1769521671195,0.05678291,88053.0,88050.0,0.21439161]
[1769521671424,0.05678291,88053.0,88047.0,0.02341678]
[1769521672178,0.36955958,88062.0,88047.0,0.02341678]
[1769521672389,0.05678399,88053.0,88047.0,0.02341678]
[1769521676472,0.05678399,88053.0,88041.0,0.00966335]
[1769521676680,0.05678399,88053.0,88041.0,0.03333628]
[1769521677281,0.05678399,88053.0,88041.0,0.02367293]
[1769521679436,0.05678399,88053.0,88043.0,0.02367293]
[1769521679637,0.05678399,88053.0,88044.0,0.02367293]
[1769521679901,0.05678399,88053.0,88046.0,0.02367293]
[1769521680634,0.05678399,88053.0,88049.0,0.52629043]
[1769521680844,0.05678399,88053.0,88050.0,0.02367293]
[1769521682623,0.05678399,88053.0,88044.0,0.53764838]
[1769521682829,0.05678399,88053.0,88045.0,0.02367293]
[1769521687966,0.05678399,88053.0,88044.0,0.52629043]
[1769521688181,0.05678399,88053.0,88040.0,0.29502363]
[1769521688395,0.50218452,88049.0,88032.0,0.11668]
[1769521688599,0.02444755,88046.0,88032.0,0.11668]
[1769521692348,0.02444755,88046.0,88032.0,0.1280395]
[1769521692571,0.02444755,88046.0,88033.0,0.01004111]
[1769521692963,0.02444755,88046.0,88033.0,0.02140048]
[1769521693139,0.02444755,88046.0,88033.0,0.0001515]
[1769521694313,0.02444755,88046.0,88033.0,0.02132898]
[1769521694524,0.02444755,88046.0,88034.0,0.01135924]
[1769521694741,0.02444755,88046.0,88033.0,0.0001515]
[1769521697143,0.50218452,88045.0,88033.0,0.0001515]
[1769521697354,0.50218452,88045.0,88017.0,0.05095293]
[1769521697355,0.52574207,88041.0,88024.0,0.0001515]
[1769521697555,0.05678399,88035.0,88024.0,0.0001515]
[1769521697798,0.05662277,88035.0,88024.0,0.0001515]
[1769521700967,0.05662277,88035.0,88026.0,0.01136027]
[1769521701171,0.05662277,88035.0,88027.0,0.01979681]
[1769521701344,0.05662277,88035.0,88027.0,0.00843666]
[1769521701787,0.05662277,88035.0,88026.0,0.01980967]
[1769521701961,0.05662277,88035.0,88026.0,0.0084494]
[1769521704165,0.05662277,88035.0,88025.0,0.82131406]
[1769521704380,0.05662277,88035.0,88025.0,0.54996336]
[1769521705262,0.05662277,88035.0,88024.0,0.0001515]
[1769521705471,0.03526277,88034.0,88024.0,0.0001515]
[1769521706866,0.03510155,88034.0,88024.0,0.0001515]
[1769521707298,0.54265435,88034.0,88024.0,0.0001515]
[1769521709776,0.54249361,88034.0,88024.0,0.0001515]
[1769521710923,0.05662277,88035.0,88008.0,0.02435664]
[1769521710924,0.5075528,88023.0,88008.0,0.02435664]
[1769521711378,0.05662277,88021.0,88008.0,0.02435664]
[1769521716004,0.2713507,88030.0,88000.0,0.02455664]
[1769521716005,0.05662277,88010.0,88000.0,0.02455664]
[1769521716210,0.0098485,88008.0,88000.0,0.0002]
[1769521716412,0.05662277,88010.0,88000.0,0.0002]
[1769521717660,0.56417557,88010.0,88000.0,0.0002]
[1769521717837,0.05642277,88000.0,87998.0,0.0001556]
[1769521720034,0.05626175,88000.0,87998.0,0.0001556]
[1769521721373,0.05626175,88000.0,87994.0,0.02567978]
[1769521721599,0.05626175,88000.0,87991.0,0.00017082]
[1769521722553,0.56381455,88000.0,87991.0,0.00017082]
[1769521724071,0.56365352,88000.0,87991.0,0.00017082]
[1769521724642,0.05636535,87999.0,87991.0,0.00017082]
[1769521724850,0.56365352,88000.0,87991.0,0.00017082]
[1769521725731,0.00017082,87991.0,87979.0,0.0001556]
[1769521725966,0.05611051,87991.0,87979.0,0.0001556]
[1769521726170,0.5075528,87990.0,87979.0,0.0001556]
[1769521726372,0.2713507,87990.0,87979.0,0.0001556]
[1769521726569,0.5075528,87989.0,87979.0,0.0001556]
[1769521727610,0.05610072,87982.0,87979.0,0.0001556]
[1769521729407,0.05610072,87982.0,87969.0,0.53447007]
[1769521729408,0.5075528,87977.0,87960.0,0.03467605]
[1769521729653,0.56395371,87977.0,87960.0,0.03467605]
[1769521729864,0.05610072,87971.0,87960.0,0.03467605]
[1769521730056,0.05602246,87971.0,87960.0,0.03467605]
[1769521731041,0.05602246,87971.0,87945.0,0.53427007]
[1769521731042,0.0002,87964.0,87945.0,0.53427007]
[1769521731236,0.0002,87964.0,87942.0,0.06839494]
[1769521731237,0.05083528,87963.0,87946.0,0.03467605]
[1769521731438,0.2713507,87960.0,87947.0,0.03467605]
[1769521731639,0.05602246,87954.0,87947.0,0.03467605]
[1769521731843,0.05602246,87954.0,87944.0,0.0002]
[1769521732651,0.56357526,87954.0,87944.0,0.0002]
[1769521733312,0.63131853,87954.0,87944.0,0.0002]
[1769521733514,0.56357526,87954.0,87944.0,0.0002]
[1769521734940,0.56357526,87954.0,87928.0,0.54683237]
[1769521735181,0.56357526,87954.0,87931.0,0.01137255]
[1769521735382,0.56357526,87954.0,87931.0,0.03467605]
[1769521735797,0.56357526,87954.0,87932.0,0.01137242]
[1769521735963,0.56357526,87954.0,87933.0,0.03467605]
[1769521736169,0.56357526,87954.0,87933.0,0.07934665]
[1769521736380,0.56357526,87954.0,87933.0,0.03467605]
[1769521736884,0.56357526,87954.0,87933.0,0.04604834]
[1769521737106,0.56357526,87954.0,87933.0,0.03467605]
[1769521737915,0.56357526,87954.0,87931.0,0.06823503]
[1769521738117,0.56357526,87954.0,87932.0,0.03467605]
[1769521738364,0.56357526,87954.0,87932.0,0.01137242]
[1769521738540,0.56357526,87954.0,87940.0,0.2713507]
[1769521740878,0.05602246,87954.0,87940.0,0.30602675]
[1769521741033,0.5503026,87954.0,87940.0,0.30602675]
[1769521741244,0.5503026,87954.0,87940.0,0.2713507]
[1769521741478,0.49428014,87953.0,87940.0,0.2713507]
[1769521742505,0.05602246,87954.0,87941.0,0.03467605]
[1769521743053,0.1168,87958.0,87955.0,0.03467605]
[1769521743266,0.1168,87970.0,87957.0,0.03467605]
[1769521743475,0.05690807,87959.0,87957.0,0.03467605]
[1769521745095,0.05690807,87959.0,87950.0,0.30602675]
[1769521745320,0.05690807,87959.0,87941.0,0.05685599]
[1769521745321,0.0093711,87950.0,87933.0,0.54660327]
[1769521745533,0.0093711,87950.0,87941.0,0.03467605]
[1769521745754,0.49428014,87957.0,87941.0,0.03467605]
[1769521746159,0.05690807,87959.0,87942.0,0.54660327]
[1769521746362,0.05690807,87959.0,87943.0,0.03467605]
[1769521746768,0.55118821,87959.0,87943.0,0.03467605]
[1769521748240,0.55118821,87959.0,87943.0,0.02385074]
[1769521751085,0.2719715,87953.0,87929.0,0.54660327]
[1769521751299,0.05690807,87944.0,87932.0,0.02385074]
[1769521751528,0.05690807,87944.0,87932.0,0.57045401]
[1769521751990,0.2719715,87942.0,87927.0,0.02385074]
[1769521752195,0.05667897,87928.0,87921.0,0.02385074]
[1769521752407,0.05667897,87928.0,87907.0,0.12817565]
[1769521752408,0.0565182,87928.0,87902.0,0.0113763]
[1769521752670,0.0565182,87928.0,87880.0,0.1]
[1769521752671,0.0565182,87928.0,87910.0,0.2719715]
[1769521752880,0.0565182,87928.0,87911.0,0.57045401]
[1769521753626,0.0565182,87916.0,87905.0,0.54660327]
[1769521753840,0.05588931,87916.0,87906.0,0.03522652]
[1769521754050,0.05588931,87916.0,87909.0,0.54660327]
[1769521754688,0.05588931,87916.0,87906.0,0.29582224]
[1769521754689,0.49428014,87932.0,87915.0,0.54683237]
[1769521754898,0.49428014,87932.0,87915.0,0.57068311]
[1769521755114,0.05687182,87917.0,87915.0,0.57068311]
[1769521756283,0.05687182,87917.0,87915.0,0.54683237]
[1769521756516,0.05687182,87917.0,87915.0,0.0002291]
[1769521760839,0.05687182,87917.0,87915.0,0.54683237]
[1769521761046,0.17277491,87948.0,87915.0,0.0002291]
[1769521761256,0.25720269,87947.0,87916.0,0.54660327]
[1769521761457,0.02302273,87944.0,87916.0,0.57045401]
[1769521761644,0.05687118,87918.0,87917.0,0.02385074]
[1769521761845,0.05687118,87918.0,87917.0,0.57045401]
[1769521764276,0.05687118,87918.0,87917.0,0.54660327]
[1769521764690,0.05687118,87918.0,87915.0,0.0002291]
[1769521765100,0.05687118,87918.0,87915.0,0.54275126]
[1769521768624,0.02269891,87932.0,87919.0,0.54252216]
[1769521768823,0.05686806,87923.0,87921.0,0.54252216]
[1769521769027,0.02269891,87942.0,87922.0,0.56726503]
[1769521769437,0.05686244,87931.0,87922.0,0.56726503]
[1769521769811,0.05686244,87931.0,87922.0,0.56759248]
[1769521770682,0.02269891,87942.0,87923.0,0.02474287]
[1769521770869,0.02269891,87949.0,87926.0,0.54252216]
[1769521771021,0.02269891,87949.0,87929.0,0.02474287]
[1769521771022,0.11305585,87948.0,87929.0,0.02474287]
[1769521771383,0.52960222,87955.0,87931.0,0.76997318]
[1769521771579,0.52960222,87955.0,87935.0,0.54252216]
[1769521771580,0.05685307,87946.0,87935.0,0.54252216]
[1769521771752,0.05685307,87946.0,87936.0,0.56726503]
[1769521772207,0.05685307,87946.0,87936.0,0.54252216]
[1769521773519,0.05685307,87946.0,87936.0,0.5672235]
[1769521773753,0.05685307,87946.0,87937.0,0.54252216]
[1769521775246,0.05685307,87946.0,87931.0,0.02470134]
[1769521775434,0.05685307,87946.0,87932.0,0.54252216]
[1769521776198,0.05685307,87946.0,87920.0,0.34018105]
[1769521776199,0.02269891,87944.0,87924.0,0.54252216]
[1769521776401,0.05685307,87946.0,87915.0,0.03180737]
[1769521776402,0.02269891,87942.0,87915.0,0.03180737]
[1769521776582,0.07955198,87935.0,87917.0,0.54252216]
[1769521776991,0.07955198,87935.0,87917.0,0.55389652]
[1769521777192,0.02269891,87934.0,87917.0,0.54252216]
[1769521777396,0.50690331,87933.0,87915.0,0.0002291]
[1769521777604,0.02269891,87931.0,87920.0,0.27211285]
[1769521779847,0.02269891,87931.0,87919.0,0.54252216]
[1769521781872,0.05685307,87935.0,87921.0,0.54252216]
[1769521784088,0.05685307,87935.0,87924.0,0.55389561]
[1769521784407,0.02269891,87950.0,87926.0,0.54252216]
[1769521784566,0.05686276,87931.0,87926.0,0.54252216]
[1769521785591,0.05686276,87931.0,87922.0,0.00046721]
[1769521785797,0.05686276,87931.0,87922.0,0.56361538]
[1769521786157,0.05686276,87931.0,87922.0,0.54298937]
[1769521786374,0.05686276,87931.0,87923.0,0.56314794]
[1769521786574,0.05686276,87931.0,87923.0,0.54252216]
[1769521786791,0.05686276,87931.0,87925.0,0.55389548]
[1769521786907,0.02269891,87953.0,87927.0,0.54252216]
[1769521787110,0.50690331,87951.0,87928.0,0.0206246]
[1769521787331,0.02269891,87949.0,87929.0,0.54252216]
[1769521787561,0.05686229,87932.0,87928.0,0.54252216]
[1769521787758,0.05686229,87932.0,87927.0,0.01137307]
[1769521787759,0.39536541,87951.0,87929.0,0.03633005]
[1769521787961,0.05686089,87934.0,87929.0,0.56314688]
[1769521788159,0.05686089,87934.0,87931.0,0.54252216]
[1769521788362,0.05686089,87934.0,87930.0,0.02474287]
[1769521788571,0.05686089,87934.0,87927.0,0.02176241]
[1769521788766,0.05686089,87934.0,87927.0,0.54252216]
[1769521788950,0.05686089,87934.0,87929.0,0.54252216]
[1769521790893,0.05686089,87934.0,87931.0,0.54252216]
[1769521791440,0.05686089,87934.0,87924.0,0.01137345]
[1769521791559,0.05686089,87934.0,87925.0,0.59926392]
[1769521791760,0.05686089,87934.0,87925.0,0.56726503]
[1769521792288,0.05686089,87934.0,87925.0,0.56753563]
[1769521793026,0.05686089,87934.0,87926.0,0.00764287]
[1769521793486,0.05686089,87934.0,87926.0,0.55016503]
[1769521793682,0.05686089,87934.0,87926.0,0.54252216]
[1769521793908,0.05686089,87934.0,87927.0,0.00765978]
[1769521794541,0.05686089,87934.0,87928.0,0.51471482]
[1769521794707,0.05686089,87934.0,87929.0,0.0076766]
[1769521795125,0.05686089,87934.0,87929.0,0.52239142]
[1769521795333,0.05686089,87934.0,87929.0,0.51471482]
[1769521795912,0.05686089,87934.0,87925.0,0.02501347]
[1769521796177,0.05686089,87934.0,87926.0,0.00770663]
[1769521797084,0.05686089,87934.0,87926.0,0.52242145]
[1769521797283,0.05686089,87934.0,87926.0,0.52608802]
[1769521797482,0.05686089,87934.0,87926.0,0.58295401]
[1769521797691,0.05686089,87934.0,87927.0,0.01137307]
[1769521798004,0.05686089,87934.0,87928.0,0.00800208]
[1769521798327,0.05686089,87934.0,87927.0,0.00801058]
[1769521800158,0.05686089,87934.0,87925.0,0.0002706]
[1769521800359,0.0002706,87925.0,87914.0,0.02453821]
[1769521800570,0.00073849,87925.0,87914.0,0.02453821]
[1769521800765,0.00073849,87925.0,87914.0,0.53925303]
[1769521801399,0.02464407,87924.0,87912.0,0.0002122]
[1769521801602,0.53575909,87922.0,87912.0,0.0002122]
[1769521801852,0.02464407,87921.0,87912.0,0.0002122]
[1769521803192,0.02464407,87921.0,87898.0,0.01137682]
[1769521803396,0.02464407,87917.0,87901.0,0.02297296]
[1769521803715,0.02464407,87917.0,87901.0,0.01159653]
[1769521803869,0.53575909,87917.0,87900.0,0.02535849]
[1769521804077,0.53575909,87915.0,87900.0,0.02535849]
[1769521804287,0.56040316,87915.0,87901.0,0.03112899]
[1769521804738,0.02464407,87943.0,87926.0,0.0113732]
[1769521804932,0.02464407,87943.0,87933.0,0.78691341]
[1769521804933,0.11342617,87942.0,87933.0,0.78691341]
[1769521805148,0.0002122,87944.0,87938.0,0.01137164]
[1769521805322,0.02464407,87950.0,87940.0,0.01137138]
[1769521805534,0.11345169,87949.0,87940.0,0.28356997]
[1769521805735,0.00014028,87950.0,87941.0,0.55721507]
[1769521805933,0.00014028,87950.0,87942.0,0.01137113]
[1769521806094,0.00014028,87950.0,87941.0,0.6140712]
[1769521806095,0.00014028,87950.0,87941.0,0.54584381]
[1769521806508,0.00014028,87950.0,87941.0,0.54564313]
[1769521806743,0.00014028,87950.0,87942.0,0.01354161]
[1769521806964,0.00014028,87950.0,87932.0,0.01137242]
[1769521807189,0.00014028,87950.0,87926.0,0.11798017]
[1769521807190,0.11345828,87949.0,87940.0,0.27219859]
[1769521807396,0.00014028,87950.0,87942.0,0.03423381]
[1769521807599,0.05684871,87953.0,87944.0,0.52608569]
[1769521807805,0.65110051,87969.0,87949.0,0.51471482]
[1769521808007,0.02464407,87968.0,87949.0,0.52622532]
[1769521808214,0.05684313,87961.0,87949.0,0.52622532]
[1769521808434,0.05684313,87961.0,87952.0,0.52608465]
[1769521808656,0.05684313,87961.0,87951.0,0.09108217]
[1769521808657,0.05684313,87961.0,87953.0,0.51471482]
[1769521808915,0.05684313,87961.0,87951.0,0.02286268]
[1769521809350,0.02464407,87968.0,87951.0,0.01136996]
[1769521809554,0.02464407,87976.0,87956.0,0.5375775]
[1769521809966,0.05683969,87967.0,87956.0,0.5375775]
[1769521810631,0.05683969,87967.0,87949.0,0.00014028]
[1769521810632,0.05683969,87967.0,87949.0,0.0115105]
[1769521810838,0.02464407,87966.0,87949.0,0.00014028]
[1769521811015,0.02464407,87964.0,87949.0,0.00014028]
[1769521811572,0.01023545,87964.0,87951.0,0.01136996]
[1769521811799,0.05683969,87967.0,87954.0,0.51471482]
[1769521811974,0.05683969,87967.0,87955.0,0.01136945]
[1769521812402,0.05683969,87967.0,87954.0,0.52608439]
[1769521812817,0.05683969,87967.0,87955.0,0.01136945]
[1769521812956,0.05683969,87967.0,87956.0,0.01136932]
[1769521813160,0.0003868,87971.0,87949.0,0.00014028]
[1769521813161,0.0003868,87971.0,87962.0,0.51471482]
[1769521813364,0.0003868,87971.0,87962.0,0.53925303]
[1769521813603,0.0003868,87971.0,87954.0,0.02453821]
[1769521813816,0.0003868,87971.0,87954.0,0.09275548]
[1769521814037,0.0003868,87971.0,87956.0,0.01136932]
[1769521814396,0.0003868,87971.0,87956.0,0.55062235]
[1769521814797,0.0003868,87971.0,87956.0,0.53925303]
[1769521816448,0.36237489,87972.0,87956.0,0.53925303]
[1769521816648,0.41921125,87972.0,87956.0,0.53925303]
[1769521817394,0.02464407,87971.0,87949.0,0.00014028]
[1769521817619,0.02464407,87967.0,87950.0,0.01137009]
[1769521817835,0.02464407,87967.0,87950.0,0.0682205]
[1769521818053,0.02464407,87967.0,87952.0,0.01136983]
[1769521818231,0.02464407,87967.0,87950.0,0.53925303]
[1769521818845,0.56040316,87967.0,87950.0,0.53925303]
[1769521819055,0.02464407,87966.0,87950.0,0.53925303]
[1769521819344,0.56040316,87966.0,87950.0,0.53925303]
[1769521819641,0.56040316,87966.0,87950.0,0.02453821]
[1769521819854,0.56040316,87966.0,87950.0,0.046452]
[1769521820059,0.56040316,87966.0,87950.0,0.11467256]
[1769521820458,0.56040316,87966.0,87951.0,0.01136996]
[1769521820669,0.56040316,87966.0,87950.0,0.046452]
[1769521821081,0.56040316,87966.0,87950.0,0.05782209]
[1769521821294,0.61723952,87972.0,87952.0,0.52608465]
[1769521821498,0.59259545,87972.0,87952.0,0.52608465]
[1769521821699,0.56040316,87971.0,87952.0,0.52608465]
[1769521821909,0.56040316,87971.0,87955.0,0.58574456]
[1769521822110,0.05683636,87972.0,87957.0,0.60999101]
[1769521822318,0.05683636,87972.0,87955.0,0.01136945]
[1769521822319,0.05683636,87972.0,87958.0,0.60655572]
[1769521822540,0.05683636,87972.0,87961.0,0.02424645]
[1769521822758,0.05683636,87972.0,87962.0,0.63217151]
[1769521822969,0.05683636,87972.0,87963.0,0.02031523]
[1769521823790,0.05683636,87972.0,87958.0,0.02031523]
[1769521825544,0.05683636,87972.0,87959.0,0.66785202]
[1769521825825,0.05683636,87972.0,87960.0,0.02022898]
[1769521827377,0.05683636,87972.0,87960.0,0.03159778]
[1769521827587,0.05683636,87972.0,87960.0,0.02022898]
[1769521827804,0.05683636,87972.0,87960.0,0.30343795]
[1769521828004,0.05683636,87972.0,87960.0,0.28320897]
[1769521828326,0.01191788,87972.0,87965.0,0.01136815]
[1769521828558,0.02488644,87985.0,87971.0,0.01136738]
[1769521828777,0.05682849,87984.0,87975.0,0.27184017]
[1769521830188,0.000337,87991.0,87984.0,0.00046722]
[1769521830397,0.05716075,87991.0,87984.0,0.00046722]
[1769521830599,0.05716075,87991.0,87980.0,0.27184017]
[1769521830808,0.05716075,87991.0,87970.0,0.27184017]
[1769521831008,0.05716075,87991.0,87931.0,0.1484]
[1769521831009,0.54034401,87987.0,87963.0,0.01136841]
[1769521831223,0.54034401,87981.0,87964.0,0.01136828]
[1769521831434,0.54048429,87981.0,87963.0,0.0124476]
[1769521831646,0.56523045,87979.0,87963.0,0.0124476]
[1769521831881,0.56523045,87979.0,87963.0,0.01136841]
[1769521832095,0.56523045,87979.0,87966.0,0.01136802]
[1769521832293,0.56523045,87979.0,87965.0,0.01136815]
[1769521832759,0.54034401,87979.0,87962.0,0.01245189]
[1769521832978,0.54034401,87979.0,87965.0,0.06820863]
[1769521833185,0.54034401,87979.0,87967.0,0.01136789]
[1769521833396,0.54034401,87979.0,87966.0,0.01136802]
[1769521834019,0.54034401,87979.0,87964.0,0.01136828]
[1769521834445,0.54034401,87977.0,87963.0,0.01245174]
[1769521834612,0.54034401,87975.0,87962.0,0.01136854]
[1769521835489,0.54034401,87975.0,87962.0,0.06821111]
[1769521835706,0.00014028,87981.0,87968.0,0.01136777]
[1769521835929,0.00014028,87981.0,87965.0,0.64486943]
[1769521836131,0.00014028,87981.0,87966.0,0.03434625]
[1769521836342,0.00014028,87981.0,87962.0,0.01136854]
[1769521836343,0.54034401,87980.0,87962.0,0.01136854]
[1769521836563,0.02488644,87979.0,87963.0,0.01114079]
[1769521836765,0.02488644,87977.0,87963.0,0.0225092]
[1769521836966,0.02488644,87977.0,87962.0,0.0225094]
[1769521837167,0.02488644,87977.0,87962.0,0.07935184]
[1769521837377,0.02488644,87977.0,87964.0,0.01136828]
[1769521837955,0.00014028,87981.0,87968.0,0.06820619]
[1769521838141,0.00014028,87981.0,87969.0,0.01136764]
[1769521838354,0.00014028,87981.0,87969.0,0.02297823]
[1769521838632,0.00014028,87981.0,87969.0,0.03434587]
[1769521839056,0.00014028,87981.0,87970.0,0.01136751]
[1769521839276,0.00014028,87981.0,87971.0,0.01136738]
[1769521839490,0.00014028,87981.0,87969.0,0.02297823]
[1769521839904,0.00014028,87981.0,87969.0,0.03434587]
[1769521840106,0.00014028,87981.0,87969.0,0.02297823]
[1769521840317,0.00014028,87981.0,87970.0,0.01136751]
[1769521841428,0.00014028,87981.0,87971.0,0.01136738]
[1769521841654,0.00014028,87981.0,87970.0,0.0682046]
[1769521841861,0.00014028,87981.0,87970.0,0.01136751]
[1769521842310,0.00014028,87981.0,87969.0,0.09118377]
[1769521842540,0.00014028,87981.0,87969.0,0.02297823]
[1769521843020,0.54048429,87981.0,87964.0,0.02297823]
[1769521843246,0.54034401,87979.0,87961.0,0.01136867]
[1769521843475,0.02488644,87976.0,87962.0,0.01136854]
[1769521843722,0.54034401,87975.0,87962.0,0.01136854]
[1769521844112,0.54034401,87975.0,87963.0,0.01136841]
[1769521844494,0.54034401,87975.0,87964.0,0.01136828]
[1769521844707,0.02488644,87976.0,87964.0,0.06820942]
[1769521844873,0.02488644,87976.0,87965.0,0.01136815]
[1769521845270,0.02488644,87976.0,87965.0,0.06820881]
[1769521845470,0.02488644,87976.0,87966.0,0.01136802]
[1769521845672,0.54034401,87979.0,87964.0,0.01136828]
[1769521845916,0.54034401,87979.0,87961.0,0.01136867]
[1769521846072,0.54034401,87977.0,87960.0,0.1281688]
[1769521846275,0.54034401,87977.0,87960.0,0.1850124]
[1769521846926,0.54034401,87977.0,87961.0,0.01136867]
[1769521847161,0.54034401,87977.0,87960.0,0.1850124]
[1769521847324,0.54034401,87977.0,87961.0,0.01136867]
[1769521847519,0.54034401,87977.0,87962.0,0.01136854]
[1769521848044,0.54034401,87977.0,87962.0,0.06821105]
[1769521848246,0.00014028,87981.0,87968.0,0.01136777]
[1769521848459,0.00014028,87981.0,87974.0,0.01136699]
[1769521848904,0.00014028,87981.0,87975.0,0.02297823]
[1769521849124,0.00014028,87981.0,87975.0,0.03434509]
[1769521849352,0.00014028,87981.0,87974.0,0.06820181]
[1769521850177,0.00014028,87981.0,87970.0,0.02297823]
[1769521850327,0.00185471,87998.0,87973.0,0.01136712]
[1769521850530,0.54034401,87983.0,87974.0,0.00836463]
[1769521850912,0.54034401,87983.0,87973.0,0.00836463]
[1769521851125,0.54034401,87983.0,87973.0,0.01973175]
[1769521851374,0.54034401,87983.0,87974.0,0.01136699]
[1769521851578,0.54034401,87983.0,87975.0,0.00837208]
[1769521851747,0.54034401,87983.0,87975.0,0.01973894]
[1769521851952,0.54034401,87983.0,87975.0,0.00837208]
[1769521852160,0.54034401,87983.0,87974.0,0.01136699]
[1769521852388,0.54034401,87983.0,87975.0,0.00837207]
[1769521852932,0.54034401,87983.0,87976.0,0.00837196]
[1769521853078,0.54034401,87983.0,87974.0,0.07671453]
[1769521853295,0.54034401,87983.0,87974.0,0.01987957]
[1769521853512,0.54034401,87983.0,87974.0,0.00851258]
[1769521853723,0.00102019,87970.0,87960.0,0.1168]
[1769521853913,0.00102019,87970.0,87960.0,0.1281688]
[1769521853914,0.5413642,87970.0,87960.0,0.1281688]
[1769521854114,0.54034401,87970.0,87961.0,0.01136867]
[1769521854311,0.54034401,87970.0,87960.0,0.18501276]
[1769521854544,0.54034401,87970.0,87961.0,0.01136867]
[1769521854777,0.54034401,87970.0,87961.0,0.06821191]
[1769521854989,0.54034401,87970.0,87961.0,0.01136867]
[1769521855593,0.54034401,87970.0,87960.0,0.4567989]
[1769521855789,0.54034401,87970.0,87961.0,0.01136867]
[1769521855917,0.54034401,87970.0,87960.0,0.39995494]
[1769521856121,0.54034401,87970.0,87960.0,0.1168]
[1769521861469,0.05683464,87972.0,87960.0,0.1168]
[1769521865106,0.05683464,87972.0,87960.0,0.14022856]
[1769521865336,0.05683464,87972.0,87961.0,0.02342856]
[1769521867229,0.5600115,87971.0,87952.0,0.09164752]
[1769521867450,0.5600115,87971.0,87954.0,0.06821729]
[1769521867691,0.5600115,87971.0,87954.0,0.01136957]
[1769521867924,0.5600115,87971.0,87954.0,0.06821741]
[1769521868164,0.5600115,87971.0,87954.0,0.03479813]
[1769521868640,0.5600115,87971.0,87955.0,0.01136945]
[1769521869064,0.5600115,87971.0,87956.0,0.01136932]
[1769521869300,0.5600115,87971.0,87955.0,0.06821668]
[1769521869804,0.5600115,87971.0,87955.0,0.06821658]
[1769521870286,0.5600115,87971.0,87957.0,0.02342856]
[1769521870538,0.55970772,87971.0,87957.0,0.02342856]
[1769521871279,0.55970772,87971.0,87958.0,0.02342856]
[1769521872879,0.55970772,87971.0,87958.0,0.03479762]
[1769521873105,0.55970772,87971.0,87958.0,0.02342856]
[1769521873881,0.55970772,87971.0,87959.0,0.01136893]
[1769521874097,0.55970772,87971.0,87958.0,0.03479762]
[1769521874316,0.55970772,87971.0,87958.0,0.02342856]
[1769521875319,0.55970772,87971.0,87959.0,0.00145719]
[1769521875766,0.06323781,87970.0,87959.0,0.00145719]
[1769521876517,0.55970772,87971.0,87959.0,0.00145719]
[1769521878385,0.55970772,87971.0,87958.0,0.02342856]
[1769521879701,0.5600115,87969.0,87952.0,0.01281119]
[1769521879908,0.5600115,87969.0,87953.0,0.02342856]
[1769521880306,0.5600115,87969.0,87953.0,0.0113697]
[1769521880519,0.5600115,87969.0,87954.0,0.02342856]